bitfinex-derivatives/quotes_BTCF0:USTF0_20241231
["timestamp","ask_amount","ask_price","bid_price","bid_amount"]
[1735683551052,0.053406,93796.0,93795.0,0.053406]
[1735683551246,0.053406,93796.0,93795.0,0.414206]
[1735683552348,0.057406,93796.0,93795.0,0.414206]
[1735683552655,0.059406,93796.0,93795.0,0.414206]
[1735683553154,0.058406,93796.0,93795.0,0.414206]
[1735683554450,0.054406,93796.0,93795.0,0.414206]
[1735683554653,0.059406,93796.0,93795.0,0.414206]
[1735683562159,0.058406,93796.0,93795.0,0.414206]
[1735683562356,0.057406,93796.0,93795.0,0.414206]
[1735683563554,0.004,93796.0,93795.0,0.414206]
[1735683564061,0.001,93796.0,93795.0,0.418206]
[1735683564451,0.0325,93807.0,93795.0,0.418206]
[1735683564763,0.0534,93806.0,93805.0,0.0534]
[1735683564962,0.0534,93806.0,93805.0,0.4142]
[1735683566259,0.0564,93806.0,93805.0,0.4142]
[1735683567062,0.0644,93806.0,93805.0,0.4152]
[1735683583272,0.011,93806.0,93805.0,0.4152]
[1735683585774,0.011,93806.0,93805.0,0.3618]
[1735683586378,0.011,93806.0,93805.0,0.4152]
[1735683595985,0.011,93806.0,93805.0,0.43360297]
[1735683602001,0.32531477,93827.0,93805.0,0.43360297]
[1735683602302,0.37870277,93827.0,93826.0,0.3608]
[1735683602503,0.47705786,93827.0,93826.0,0.3608]
[1735683603300,0.38670277,93827.0,93826.0,0.3608]
[1735683603607,0.38870277,93827.0,93826.0,0.3608]
[1735683603808,0.38070277,93827.0,93826.0,0.414188]
[1735683604011,0.38970277,93827.0,93826.0,0.415188]
[1735683604506,0.38970277,93827.0,93826.0,0.416188]
[1735683604715,0.40741071,93827.0,93826.0,0.416188]
[1735683605299,0.46951071,93827.0,93826.0,0.416188]
[1735683606016,0.46951071,93827.0,93826.0,0.35606897]
[1735683610312,0.46951071,93827.0,93826.0,0.30268097]
[1735683611117,0.24255103,93827.0,93826.0,0.002]
[1735683612138,0.14419594,93827.0,93826.0,0.002]
[1735683612618,0.14419594,93827.0,93826.0,0.001]
[1735683613319,0.14219594,93827.0,93826.0,0.001]
[1735683613527,0.13519594,93827.0,93823.0,0.05339]
[1735683613821,0.13819594,93827.0,93826.0,0.001]
[1735683614118,0.13619594,93827.0,93826.0,0.001]
[1735683614321,0.13819594,93827.0,93826.0,0.001]
[1735683614715,0.053392,93819.0,93818.0,0.414192]
[1735683616524,0.055392,93819.0,93818.0,0.414192]
[1735683617422,0.055392,93819.0,93818.0,0.3608]
[1735683617820,0.058392,93819.0,93818.0,0.3608]
[1735683618423,0.058392,93819.0,93818.0,0.3618]
[1735683620114,0.056392,93819.0,93818.0,0.3618]
[1735683620315,0.058392,93819.0,93818.0,0.3608]
[1735683621412,0.058392,93819.0,93818.0,0.3006762]
[1735683623426,0.055392,93819.0,93818.0,0.3006762]
[1735683623618,0.058392,93819.0,93818.0,0.3006762]
[1735683626227,0.053394,93816.0,93815.0,0.053394]
[1735683627218,0.053394,93816.0,93815.0,0.414194]
[1735683627729,0.056394,93816.0,93815.0,0.414194]
[1735683628227,0.056394,93816.0,93815.0,0.3608]
[1735683628631,0.058394,93816.0,93815.0,0.3608]
[1735683633318,0.053398,93808.0,93806.0,0.3608]
[1735683633523,0.053398,93808.0,93761.0,0.053425]
[1735683633524,0.053405,93796.0,93788.0,0.19189088]
[1735683633724,0.053409,93789.0,93788.0,0.19189088]
[1735683633928,0.053413,93782.0,93781.0,0.19189088]
[1735683635229,0.053416,93777.0,93776.0,0.00159951]
[1735683636632,0.053416,93777.0,93776.0,0.00459951]
[1735683637130,0.054416,93777.0,93776.0,0.01159951]
[1735683653434,0.05342,93771.0,93736.0,0.3608]
[1735683653638,0.41763407,93777.0,93728.0,0.00160046]
[1735683653639,0.053443,93729.0,93728.0,0.00160046]
[1735683653840,0.053443,93729.0,93728.0,0.05504446]
[1735683655449,0.053443,93729.0,93728.0,0.05904446]
[1735683656336,0.053443,93729.0,93728.0,0.05804446]
[1735683656945,0.054443,93729.0,93728.0,0.06404446]
[1735683670557,0.054443,93729.0,93728.0,0.062444]
[1735683682660,0.001,93729.0,93702.0,0.32041813]
[1735683682856,0.414251,93715.0,93714.0,0.14199088]
[1735683683163,0.414251,93715.0,93700.0,0.1]
[1735683683164,0.053453,93713.0,93712.0,0.2558545]
[1735683684269,0.414251,93715.0,93709.0,0.00160052]
[1735683684457,0.053454,93710.0,93709.0,0.00160052]
[1735683686771,0.053454,93710.0,93709.0,0.00660052]
[1735683686955,0.053454,93710.0,93709.0,0.00760052]
[1735683687159,0.054454,93710.0,93709.0,0.00760052]
[1735683698276,0.05440613,93710.0,93709.0,0.00760052]
[1735683720080,0.05440613,93710.0,93675.0,0.3608]
[1735683720081,0.301,93710.0,93675.0,0.3608]
[1735683720278,0.053475,93673.0,93664.0,0.38438176]
[1735683721593,0.05348,93665.0,93664.0,0.0006]
[1735683721787,0.053475,93673.0,93663.0,0.053481]
[1735683721788,0.053481,93664.0,93663.0,0.053481]
[1735683722083,0.053479,93667.0,93666.0,0.053479]
[1735683723592,0.054479,93667.0,93666.0,0.053479]
[1735683724291,0.001,93667.0,93666.0,0.053479]
[1735683724483,0.3608,93689.0,93667.0,0.053479]
[1735683724685,0.28882024,93692.0,93691.0,0.053465]
[1735683725582,0.00160172,93692.0,93691.0,0.053465]
[1735683726299,0.00860172,93692.0,93691.0,0.053465]
[1735683726799,0.00460172,93692.0,93691.0,0.053465]
[1735683727598,0.00760172,93692.0,93691.0,0.053465]
[1735683728484,0.00560172,93692.0,93691.0,0.053465]
[1735683729999,0.00460172,93692.0,93691.0,0.053465]
[1735683730196,0.00560172,93692.0,93691.0,0.053465]
[1735683737007,0.00460172,93692.0,93691.0,0.053465]
[1735683737809,0.00560172,93692.0,93691.0,0.053465]
[1735683738408,0.00460172,93692.0,93691.0,0.053465]
[1735683738705,0.003,93692.0,93691.0,0.053465]
[1735683743412,0.056465,93692.0,93691.0,0.053465]
[1735683745317,0.057465,93692.0,93691.0,0.053465]
[1735683746119,0.058465,93692.0,93691.0,0.053465]
[1735683746414,0.419265,93692.0,93691.0,0.053465]
[1735683747312,0.44172584,93692.0,93691.0,0.053465]
[1735683747615,0.4719302,93692.0,93691.0,0.053465]
[1735683748205,0.56332847,93692.0,93691.0,0.053465]
[1735683751719,0.4719302,93692.0,93691.0,0.053465]
[1735683753821,0.56334837,93692.0,93691.0,0.053465]
[1735683754024,0.55246384,93692.0,93691.0,0.053465]
[1735683754317,0.56335851,93692.0,93691.0,0.053465]
[1735683754524,0.530003,93692.0,93691.0,0.053465]
[1735683755223,0.36769204,93692.0,93691.0,0.053465]
[1735683755426,0.34837221,93692.0,93691.0,0.053465]
[1735683756023,0.40183721,93692.0,93691.0,0.053465]
[1735683757530,0.14488317,93692.0,93691.0,0.053465]
[1735683757729,0.053465,93692.0,93691.0,0.053465]
[1735683758736,0.054465,93692.0,93691.0,0.053465]
[1735683759125,0.057465,93692.0,93691.0,0.053465]
[1735683767834,0.14891072,93692.0,93691.0,0.053465]
[1735683773929,0.09544572,93692.0,93691.0,0.053465]
[1735683775331,0.09344572,93692.0,93691.0,0.053465]
[1735683776037,0.09444572,93692.0,93691.0,0.053465]
[1735683778029,0.09544572,93692.0,93691.0,0.053465]
[1735683786739,0.14891072,93692.0,93691.0,0.053465]
[1735683787045,0.15979791,93692.0,93691.0,0.053465]
[1735683787243,0.17923973,93692.0,93691.0,0.053465]
[1735683793643,0.16835254,93692.0,93691.0,0.053465]
[1735683794837,0.14891072,93692.0,93691.0,0.053465]
[1735683795448,0.09544572,93692.0,93691.0,0.053465]
[1735683798649,0.14891072,93692.0,93691.0,0.053465]
[1735683803352,0.50971072,93692.0,93691.0,0.053465]
[1735683803658,0.52915254,93692.0,93691.0,0.053465]
[1735683803952,0.16835254,93692.0,93691.0,0.053465]
[1735683804147,0.50971072,93692.0,93691.0,0.053465]
[1735683804343,0.52915254,93692.0,93691.0,0.053465]
[1735683805762,0.54028353,93692.0,93691.0,0.053465]
[1735683806954,0.52915254,93692.0,93691.0,0.053465]
[1735683812460,0.50971072,93692.0,93691.0,0.053465]
[1735683816556,0.418265,93692.0,93691.0,0.053465]
[1735683817564,0.057465,93692.0,93691.0,0.053465]
[1735683817869,0.418265,93692.0,93691.0,0.053465]
[1735683819163,0.50880338,93692.0,93691.0,0.053465]
[1735683820662,0.50880338,93692.0,93684.0,0.0349]
[1735683820859,0.50880338,93692.0,93689.0,0.053466]
[1735683821756,0.417265,93692.0,93689.0,0.053466]
[1735683822563,0.415265,93692.0,93689.0,0.053466]
[1735683822763,0.42839618,93692.0,93689.0,0.053466]
[1735683822964,0.11040328,93691.0,93689.0,0.053466]
[1735683823156,0.12153446,93691.0,93689.0,0.053466]
[1735683824156,0.09064314,93690.0,93689.0,0.053466]
[1735683825466,0.09164314,93690.0,93689.0,0.053466]
[1735683826265,0.09364314,93690.0,93689.0,0.053466]
[1735683827065,0.14710914,93690.0,93689.0,0.053466]
[1735683829067,0.14510914,93690.0,93689.0,0.053466]
[1735683829269,0.14610914,93690.0,93689.0,0.053466]
[1735683829565,0.14510914,93690.0,93689.0,0.053466]
[1735683829867,0.14710914,93690.0,93689.0,0.053466]
[1735683831476,0.14710914,93690.0,93689.0,0.06645459]
[1735683833473,0.14610914,93690.0,93689.0,0.06645459]
[1735683834179,0.14510914,93690.0,93689.0,0.06645459]
[1735683834473,0.14610914,93690.0,93689.0,0.06645459]
[1735683835170,0.14710914,93690.0,93689.0,0.06645459]
[1735683835571,0.3480566,93692.0,93689.0,0.06645459]
[1735683835980,0.053466,93690.0,93689.0,0.06645459]
[1735683837478,0.055466,93690.0,93689.0,0.06645459]
[1735683838274,0.056466,93690.0,93689.0,0.06645459]
[1735683843078,0.056466,93690.0,93689.0,0.01298859]
[1735683843685,0.055466,93690.0,93689.0,0.01298859]
[1735683844079,0.054466,93690.0,93689.0,0.01298859]
[1735683844279,0.055466,93690.0,93689.0,0.01298859]
[1735683844479,0.056466,93690.0,93689.0,0.01298859]
[1735683846182,0.056466,93690.0,93689.0,0.0062345]
[1735683850382,0.123966,93690.0,93689.0,0.0062345]
[1735683851989,0.44364272,93690.0,93689.0,0.0062345]
[1735683852184,0.053473,93672.0,93671.0,0.085874]
[1735683853386,0.053473,93672.0,93671.0,0.088874]
[1735683853889,0.054473,93672.0,93671.0,0.094874]
[1735683854986,0.054473,93672.0,93671.0,0.0414]
[1735683856183,0.054473,93672.0,93671.0,0.009]
[1735683856395,0.415273,93672.0,93671.0,0.009]
[1735683856888,0.50320573,93672.0,93671.0,0.009]
[1735683857094,0.53375144,93672.0,93671.0,0.009]
[1735683859396,0.52261737,93672.0,93671.0,0.009]
[1735683860794,0.53371675,93672.0,93671.0,0.009]
[1735683863000,0.52261737,93672.0,93671.0,0.009]
[1735683863597,0.53368412,93672.0,93671.0,0.009]
[1735683864595,0.52258562,93672.0,93671.0,0.062474]
[1735683865395,0.43465289,93672.0,93671.0,0.062474]
[1735683866695,0.415273,93672.0,93671.0,0.062474]
[1735683869703,0.415273,93672.0,93671.0,0.009]
[1735683878705,0.50352896,93672.0,93671.0,0.009]
[1735683879605,0.52323469,93672.0,93671.0,0.009]
[1735683879808,0.50352896,93672.0,93671.0,0.009]
[1735683880004,0.415273,93672.0,93671.0,0.009]
[1735683882211,0.50359533,93672.0,93671.0,0.009]
[1735683882410,0.52334089,93672.0,93671.0,0.009]
[1735683882616,0.5344354,93672.0,93671.0,0.009]
[1735683885705,0.6350881,93672.0,93671.0,0.009]
[1735683886318,0.053483,93655.0,93654.0,0.0353]
[1735683887507,0.054483,93655.0,93654.0,0.0403]
[1735683888409,0.055483,93655.0,93654.0,0.0473]
[1735683889018,0.055483,93655.0,93654.0,0.0423]
[1735683889219,0.054483,93655.0,93654.0,0.0403]
[1735683889409,0.15322984,93655.0,93654.0,0.0403]
[1735683890617,0.15222984,93655.0,93654.0,0.0403]
[1735683891307,0.15222984,93655.0,93654.0,0.0363]
[1735683891914,0.16421497,93655.0,93654.0,0.0363]
[1735683898424,0.28533327,93655.0,93654.0,0.0363]
[1735683899422,0.53973376,93655.0,93654.0,0.0363]
[1735683901022,0.41656563,93655.0,93654.0,0.0363]
[1735683901219,0.28648421,93660.0,93654.0,0.3363]
[1735683901527,0.28648421,93660.0,93659.0,0.053481]
[1735683902028,0.28648421,93660.0,93654.0,0.3363]
[1735683902029,0.22263525,93665.0,93656.0,0.12760964]
[1735683902215,0.22263525,93665.0,93664.0,0.053478]
[1735683903121,0.22263525,93665.0,93663.0,0.3608]
[1735683903122,0.053477,93666.0,93663.0,0.3608]
[1735683903317,0.053477,93666.0,93665.0,0.053477]
[1735683904928,0.3608,93671.0,93670.0,0.053474]
[1735683905929,0.43387865,93671.0,93670.0,0.053474]
[1735683906127,0.43887865,93671.0,93670.0,0.053474]
[1735683907327,0.419274,93671.0,93670.0,0.053474]
[1735683908328,0.64392984,93671.0,93670.0,0.053474]
[1735683911925,0.61019136,93671.0,93656.0,0.48840964]
[1735683912127,0.053477,93667.0,93666.0,0.053477]
[1735683913235,0.056477,93667.0,93666.0,0.053477]
[1735683913436,0.14870149,93667.0,93666.0,0.053477]
[1735683914931,0.053477,93667.0,93666.0,0.053477]
[1735683915642,0.16054291,93667.0,93666.0,0.053477]
[1735683916243,0.053477,93667.0,93666.0,0.053477]
[1735683916938,0.27618577,93667.0,93666.0,0.053477]
[1735683918031,0.15780258,93667.0,93666.0,0.053477]
[1735683918636,0.15780258,93667.0,93656.0,0.4941451]
[1735683919130,0.15780258,93667.0,93666.0,0.053476]
[1735683919330,0.053477,93667.0,93666.0,0.053476]
[1735683921444,0.16079141,93667.0,93666.0,0.053476]
[1735683921942,0.16179141,93667.0,93666.0,0.053476]
[1735683922642,0.10831441,93667.0,93666.0,0.053476]
[1735683923640,0.004,93667.0,93666.0,0.053476]
[1735683934153,0.004,93667.0,93666.0,0.0654745]
[1735683935052,0.14023275,93673.0,93666.0,0.0654745]
[1735683935454,0.053477,93671.0,93670.0,0.053476]
[1735683936442,0.16049661,93671.0,93670.0,0.053476]
[1735683936651,0.44698082,93671.0,93670.0,0.053476]
[1735683936957,0.46672134,93671.0,93670.0,0.053476]
[1735683937848,0.18023713,93671.0,93670.0,0.053476]
[1735683938343,0.21613713,93671.0,93670.0,0.053476]
[1735683938543,0.21813713,93671.0,93670.0,0.053476]
[1735683939046,0.19839661,93671.0,93670.0,0.053476]
[1735683939646,0.28648421,93673.0,93670.0,0.053476]
[1735683939647,0.20462134,93673.0,93670.0,0.053476]
[1735683940458,0.053477,93671.0,93670.0,0.053476]
[1735683940649,0.16964758,93671.0,93670.0,0.053476]
[1735683941762,0.055477,93671.0,93670.0,0.053476]
[1735683942645,0.059477,93671.0,93670.0,0.053476]
[1735683943456,0.31433689,93671.0,93670.0,0.053476]
[1735683945552,0.26085989,93671.0,93670.0,0.053476]
[1735683947852,0.25985989,93671.0,93670.0,0.053476]
[1735683948660,0.26085989,93671.0,93670.0,0.053476]
[1735683948861,0.25785989,93671.0,93670.0,0.053476]
[1735683949162,0.003,93671.0,93670.0,0.053476]
[1735683949358,0.002,93671.0,93670.0,0.053476]
[1735683949568,0.004,93671.0,93670.0,0.053476]
[1735683949957,0.002,93671.0,93670.0,0.053476]
[1735683950158,0.003,93671.0,93670.0,0.053476]
[1735683950366,0.002,93671.0,93670.0,0.053476]
[1735683950558,0.002,93671.0,93666.0,0.053476]
[1735683951170,0.055477,93671.0,93666.0,0.053476]
[1735683951664,0.38329909,93670.0,93666.0,0.053476]
[1735683951860,0.41383778,93670.0,93666.0,0.053476]
[1735683952061,0.053478,93669.0,93666.0,0.053476]
[1735683952261,0.053479,93668.0,93666.0,0.053476]
[1735683952861,0.15002612,93668.0,93666.0,0.053476]
[1735683953062,0.053479,93667.0,93666.0,0.053476]
[1735683953969,0.15002612,93667.0,93666.0,0.053476]
[1735683954467,0.15102612,93667.0,93666.0,0.053476]
[1735683955967,0.15202612,93667.0,93666.0,0.053476]
[1735683956475,0.055479,93667.0,93666.0,0.053476]
[1735683957166,0.054479,93667.0,93666.0,0.054476]
[1735683958174,0.053479,93667.0,93666.0,0.054476]
[1735683958555,0.053479,93667.0,93666.0,0.053476]
[1735683958556,0.054479,93667.0,93666.0,0.053476]
[1735683959165,0.055479,93667.0,93666.0,0.053476]
[1735683964372,0.15227473,93667.0,93666.0,0.053476]
[1735683968768,0.40724323,93667.0,93666.0,0.053476]
[1735683970970,0.15227473,93667.0,93666.0,0.053476]
[1735683971769,0.055479,93667.0,93666.0,0.053476]
[1735683972970,0.15227473,93667.0,93666.0,0.053476]
[1735683979373,0.09879573,93667.0,93666.0,0.053476]
[1735683996985,0.002,93667.0,93666.0,0.053476]
[1735684008098,0.001,93667.0,93666.0,0.053476]
[1735684008402,0.053474,93676.0,93675.0,0.053474]
[1735684010701,0.055474,93676.0,93675.0,0.053474]
[1735684011206,0.060474,93676.0,93675.0,0.054474]
[1735684018307,0.15748546,93676.0,93675.0,0.054474]
[1735684018605,0.10401146,93676.0,93675.0,0.054474]
[1735684021195,0.09901146,93676.0,93675.0,0.053474]
[1735684021401,0.10301146,93676.0,93675.0,0.053474]
[1735684024407,0.10101146,93676.0,93675.0,0.053474]
[1735684024601,0.10301146,93676.0,93675.0,0.053474]
[1735684029115,0.006,93676.0,93675.0,0.053474]
[1735684029915,0.006,93676.0,93675.0,0.089274]
[1735684031711,0.002,93676.0,93675.0,0.089274]
[1735684031917,0.002,93676.0,93675.0,0.093274]
[1735684033324,0.00160151,93695.0,93675.0,0.093274]
[1735684033325,0.00160151,93695.0,93694.0,0.053463]
[1735684033823,0.29821359,93702.0,93694.0,0.414263]
[1735684034019,0.29821359,93702.0,93701.0,0.053459]
[1735684034423,0.01123179,93702.0,93701.0,0.053459]
[1735684034721,0.05869455,93710.0,93705.0,0.053457]
[1735684034914,0.00108001,93710.0,93705.0,0.053457]
[1735684035146,0.34308191,93713.0,93705.0,0.053457]
[1735684035516,0.11106654,93715.0,93705.0,0.053457]
[1735684035924,0.0528488,93706.0,93705.0,0.054457]
[1735684036621,0.0558488,93706.0,93705.0,0.054457]
[1735684038627,0.0212488,93706.0,93705.0,0.054457]
[1735684040329,0.01,93706.0,93705.0,0.054457]
[1735684040727,0.01,93706.0,93705.0,0.06609375]
[1735684044232,0.01,93706.0,93705.0,0.42689375]
[1735684055143,0.003,93706.0,93705.0,0.42789375]
[1735684055847,0.0738,93719.0,93705.0,0.42789375]
[1735684056146,0.0738,93719.0,93718.0,0.05345]
[1735684057543,0.0758,93719.0,93718.0,0.05345]
[1735684057961,0.0808,93719.0,93718.0,0.05345]
[1735684059451,0.0788,93719.0,93718.0,0.05345]
[1735684059647,0.17052129,93719.0,93718.0,0.05345]
[1735684060748,0.17152129,93719.0,93718.0,0.05445]
[1735684061254,0.16552129,93719.0,93718.0,0.05345]
[1735684061454,0.17252129,93719.0,93718.0,0.05445]
[1735684062849,0.17052129,93719.0,93718.0,0.05445]
[1735684063054,0.17352129,93719.0,93718.0,0.05445]
[1735684064645,0.13672129,93719.0,93718.0,0.05445]
[1735684065257,0.13672129,93719.0,93718.0,0.0655777]
[1735684066347,0.12972129,93719.0,93718.0,0.0645777]
[1735684066655,0.13672129,93719.0,93718.0,0.0655777]
[1735684067864,0.13672129,93719.0,93718.0,0.05445]
[1735684070461,0.13372129,93719.0,93718.0,0.05445]
[1735684070658,0.13572129,93719.0,93718.0,0.05445]
[1735684071051,0.13372129,93719.0,93718.0,0.05345]
[1735684071258,0.13172129,93719.0,93718.0,0.05345]
[1735684071558,0.13372129,93719.0,93718.0,0.05345]
[1735684071763,0.13472129,93719.0,93718.0,0.05445]
[1735684072058,0.13272129,93719.0,93718.0,0.05445]
[1735684072264,0.13372129,93719.0,93718.0,0.05345]
[1735684073791,0.13172129,93719.0,93718.0,0.05345]
[1735684074001,0.13372129,93719.0,93718.0,0.05345]
[1735684080475,0.044,93719.0,93718.0,0.05345]
[1735684089879,0.13379521,93719.0,93718.0,0.05345]
[1735684090471,0.0168787,93723.0,93722.0,0.053447]
[1735684090875,0.01932317,93727.0,93726.0,0.053445]
[1735684091179,0.38012317,93728.0,93722.0,0.053447]
[1735684091573,0.007,93723.0,93722.0,0.054447]
[1735684091778,0.01,93723.0,93722.0,0.054447]
[1735684092171,0.003,93723.0,93722.0,0.053447]
[1735684092772,0.003,93723.0,93722.0,0.414247]
[1735684092968,0.01,93723.0,93722.0,0.415247]
[1735684093574,0.007,93723.0,93722.0,0.415247]
[1735684094486,0.2869818,93743.0,93742.0,0.053436]
[1735684094985,0.053431,93751.0,93742.0,0.053436]
[1735684095185,0.053431,93751.0,93747.0,0.053433]
[1735684096179,0.0193061,93752.0,93747.0,0.053433]
[1735684096180,0.03045817,93752.0,93747.0,0.053433]
[1735684096395,0.0193061,93753.0,93747.0,0.053433]
[1735684096886,0.32531477,93754.0,93747.0,0.053433]
[1735684097287,0.32531477,93754.0,93745.0,0.3608]
[1735684097288,0.13294629,93759.0,93758.0,0.053427]
[1735684097880,0.0962633,93759.0,93758.0,0.053427]
[1735684098177,0.077,93759.0,93758.0,0.053427]
[1735684098375,0.09625365,93759.0,93758.0,0.053427]
[1735684098574,0.09625365,93759.0,93758.0,0.054427]
[1735684098779,0.077,93759.0,93758.0,0.054427]
[1735684098978,0.08815793,93759.0,93758.0,0.055427]
[1735684099184,0.09623044,93759.0,93758.0,0.055427]
[1735684099579,0.077,93759.0,93758.0,0.055427]
[1735684099777,0.02083082,93762.0,93761.0,0.053425]
[1735684099982,0.00160038,93762.0,93761.0,0.053425]
[1735684101180,0.00160038,93762.0,93761.0,0.054425]
[1735684101381,0.00760038,93762.0,93761.0,0.055425]
[1735684101588,0.006,93762.0,93761.0,0.055425]
[1735684103290,0.006,93762.0,93761.0,0.054425]
[1735684109001,0.006,93762.0,93761.0,0.415225]
[1735684124310,0.004,93762.0,93761.0,0.418225]
[1735684124609,0.1,93775.0,93761.0,0.423225]
[1735684124808,0.1,93775.0,93774.0,0.053418]
[1735684131214,0.1,93775.0,93774.0,0.06452064]
[1735684147123,0.18696113,93775.0,93774.0,0.06452064]
[1735684147726,0.1,93775.0,93774.0,0.06452064]
[1735684149423,0.1,93775.0,93774.0,0.42532064]
[1735684149726,0.18713386,93775.0,93774.0,0.42532064]
[1735684150927,0.1,93775.0,93774.0,0.42532064]
[1735684159023,0.00159996,93790.0,93774.0,0.42532064]
[1735684159224,0.00159996,93790.0,93789.0,0.053409]
[1735684160835,0.00559996,93790.0,93789.0,0.054409]
[1735684162135,0.00759996,93790.0,93789.0,0.054409]
[1735684164739,0.00759996,93790.0,93789.0,0.06547535]
[1735684175547,0.00759996,93790.0,93789.0,0.42627535]
[1735684183457,0.00359996,93790.0,93789.0,0.43027535]
[1735684183844,0.00359996,93790.0,93789.0,0.42727535]
[1735684183845,0.00159996,93790.0,93789.0,0.42727535]
[1735684184045,0.00159996,93790.0,93789.0,0.43227535]
[1735684186852,0.00159996,93790.0,93789.0,0.43027535]
[1735684187055,0.00159996,93790.0,93789.0,0.43227535]
[1735684187647,0.00159996,93790.0,93789.0,0.43027535]
[1735684187852,0.00159996,93790.0,93789.0,0.43227535]
[1735684188447,0.00159996,93790.0,93789.0,0.42527535]
[1735684188652,0.00159996,93790.0,93789.0,0.43227535]
[1735684191355,0.0372,93799.0,93789.0,0.43227535]
[1735684191550,0.0372,93799.0,93798.0,0.053404]
[1735684196757,0.0372,93799.0,93798.0,0.414204]
[1735684203370,0.1248386,93799.0,93798.0,0.414204]
[1735684207878,0.0372,93799.0,93798.0,0.414204]
[1735684215181,0.12521499,93799.0,93798.0,0.414204]
[1735684215583,0.16118396,93800.0,93799.0,0.053404]
[1735684219581,0.16118396,93800.0,93799.0,0.06432992]
[1735684256811,0.02716337,93807.0,93806.0,0.0534]
[1735684258509,0.03016337,93807.0,93806.0,0.0534]
[1735684259110,0.03216337,93807.0,93806.0,0.0534]
[1735684273826,0.005,93807.0,93806.0,0.0534]
[1735684278819,0.058399,93807.0,93806.0,0.0534]
[1735684284929,0.05844839,93807.0,93806.0,0.0534]
[1735684294728,0.00504939,93807.0,93806.0,0.0534]
[1735684306337,0.00404939,93807.0,93806.0,0.0534]
[1735684307835,0.00404939,93807.0,93800.0,0.053403]
[1735684308143,0.00504939,93807.0,93800.0,0.053403]
[1735684308946,0.00504939,93807.0,93806.0,0.0534]
[1735684309135,0.00304939,93807.0,93806.0,0.0534]
[1735684309532,0.00304939,93807.0,93798.0,0.3608]
[1735684309742,0.3608,93799.0,93777.0,0.55337486]
[1735684309943,0.053416,93778.0,93777.0,0.19257486]
[1735684310347,0.053421,93769.0,93768.0,0.053981]
[1735684310546,0.053421,93769.0,93768.0,0.053421]
[1735684311246,0.3608,93770.0,93759.0,0.3608]
[1735684311435,0.41841454,93770.0,93759.0,0.3608]
[1735684311638,0.053423,93765.0,93764.0,0.053423]
[1735684313248,0.053423,93765.0,93764.0,0.062423]
[1735684314850,0.053423,93765.0,93764.0,0.064423]
[1735684315546,0.053423,93765.0,93764.0,0.060423]
[1735684317751,0.053423,93765.0,93764.0,0.007]
[1735684321547,0.053423,93765.0,93750.0,0.05761454]
[1735684321548,0.3608,93768.0,93751.0,0.0725]
[1735684321757,0.053432,93750.0,93736.0,0.0391]
[1735684321954,0.053432,93750.0,93748.0,0.053433]
[1735684323557,0.053432,93750.0,93748.0,0.058433]
[1735684324253,0.3608,93752.0,93748.0,0.005]
[1735684324448,0.053432,93749.0,93748.0,0.005]
[1735684325051,0.053432,93749.0,93748.0,0.014]
[1735684325448,0.053432,93749.0,93748.0,0.009]
[1735684325653,0.053432,93749.0,93748.0,0.005]
[1735684325854,0.054432,93749.0,93748.0,0.014]
[1735684326246,0.054432,93749.0,93748.0,0.009]
[1735684326448,0.054432,93749.0,93748.0,0.014]
[1735684327054,0.054432,93749.0,93748.0,0.062433]
[1735684327254,0.054432,93749.0,93748.0,0.065433]
[1735684327759,0.053432,93749.0,93748.0,0.056433]
[1735684327967,0.054432,93749.0,93748.0,0.064433]
[1735684345567,0.054432,93749.0,93748.0,0.056433]
[1735684345966,0.054432,93749.0,93748.0,0.053433]
[1735684346167,0.055432,93749.0,93748.0,0.053433]
[1735684349672,0.002,93749.0,93737.0,0.0375]
[1735684349872,0.053438,93741.0,93740.0,0.053434]
[1735684351266,0.053438,93741.0,93740.0,0.056434]
[1735684353375,0.053438,93741.0,93740.0,0.054434]
[1735684353775,0.053438,93741.0,93740.0,0.001]
[1735684355371,0.14171066,93741.0,93740.0,0.001]
[1735684355971,0.053445,93727.0,93726.0,0.00870617]
[1735684356274,0.414245,93727.0,93726.0,0.06215117]
[1735684357278,0.414245,93727.0,93726.0,0.00870617]
[1735684357573,0.415245,93727.0,93726.0,0.01570617]
[1735684357987,0.415245,93727.0,93726.0,0.007]
[1735684358180,0.44757856,93727.0,93726.0,0.01]
[1735684358878,0.43614915,93727.0,93726.0,0.01]
[1735684359274,0.415245,93727.0,93726.0,0.01]
[1735684360377,0.43614915,93727.0,93726.0,0.01]
[1735684364179,0.26831416,93727.0,93726.0,0.01]
[1735684364380,0.24741001,93727.0,93726.0,0.01]
[1735684364576,0.30085501,93727.0,93726.0,0.01]
[1735684367079,0.38904312,93727.0,93726.0,0.01]
[1735684372090,0.30085501,93727.0,93726.0,0.01]
[1735684374190,0.38907658,93727.0,93726.0,0.01]
[1735684374986,0.39007658,93727.0,93726.0,0.007]
[1735684375583,0.053447,93723.0,93722.0,0.053447]
[1735684377292,0.053449,93719.0,93718.0,0.00160063]
[1735684377588,0.414249,93719.0,93718.0,0.05505063]
[1735684378690,0.414249,93719.0,93718.0,0.00260063]
[1735684378891,0.414249,93719.0,93718.0,0.00460063]
[1735684379491,0.44654948,93719.0,93718.0,0.00460063]
[1735684379688,0.53483335,93719.0,93718.0,0.00460063]
[1735684380084,0.54579493,93719.0,93718.0,0.05805063]
[1735684381195,0.54579493,93719.0,93718.0,0.00460063]
[1735684381585,0.54579493,93719.0,93718.0,0.05805063]
[1735684385697,0.64640587,93719.0,93718.0,0.05805063]
[1735684388007,0.54579493,93719.0,93718.0,0.05805063]
[1735684388203,0.5343986,93719.0,93718.0,0.00460063]
[1735684388402,0.5343986,93719.0,93718.0,0.05805063]
[1735684392397,0.54580699,93719.0,93718.0,0.00460063]
[1735684392803,0.54580699,93719.0,93718.0,0.00134463]